bitfinex/quotes_SOLUSD_20250107
["timestamp","ask_amount","ask_price","bid_price","bid_amount"]
[1736220095096,75.5,217.03,217.02,20.0]
[1736220097009,75.5,217.0,216.99,8.97285561]
[1736220102809,0.86403501,217.05,216.99,8.97285561]
[1736220103020,75.5,217.05,217.03,8.97285561]
[1736220104608,66.52714439,217.02,216.99,20.0]
[1736220104793,0.8639646,217.06,217.01,8.97285561]
[1736220105108,0.8639646,217.06,217.04,8.97285561]
[1736220106603,0.8639646,217.06,216.99,20.0]
[1736220106806,9.83682021,217.06,216.99,20.0]
[1736220107307,9.83682021,217.06,216.99,28.97285561]
[1736220107599,0.8639646,217.06,217.0,8.97285561]
[1736220107804,0.8639646,217.06,217.01,8.97285561]
[1736220108308,0.8639646,217.06,217.02,8.97285561]
[1736220108806,67.5,217.05,217.02,8.97285561]
[1736220108991,0.86403341,217.04,217.02,8.97285561]
[1736220112819,0.86403341,217.04,217.03,8.97285561]
[1736220114817,58.52714439,217.02,216.99,20.0]
[1736220114989,58.52714439,217.02,217.01,8.97285561]
[1736220116108,58.52714439,217.02,216.99,20.0]
[1736220116298,58.52714439,217.02,217.01,8.97285561]
[1736220120793,59.5,217.11,217.01,8.97285561]
[1736220120994,0.86393155,217.1,217.05,8.97285561]
[1736220122015,9.83678716,217.1,216.99,20.0]
[1736220122224,9.83678716,217.1,217.03,8.97285561]
[1736220122402,8.97285561,217.09,217.02,8.97285561]
[1736220122602,0.8640499,217.08,217.02,8.97285561]
[1736220124218,59.5,217.06,217.02,8.97285561]
[1736220124422,0.86404949,217.05,217.02,8.97285561]
[1736220125330,59.5,217.03,216.95,67.0]
[1736220125532,0.8641974,217.02,216.98,8.97285561]
[1736220126110,0.8641974,217.02,216.99,8.97285561]
[1736220128024,0.80873963,217.02,216.99,8.97285561]
[1736220129020,0.80873963,217.02,216.95,20.0]
[1736220129220,0.80873963,217.02,216.98,8.97285561]
[1736220129925,59.5,217.01,216.98,8.97285561]
[1736220130224,59.5,216.99,216.98,8.97285561]
[1736220133404,59.5,216.99,216.95,20.0]
[1736220133706,59.5,216.99,216.98,8.97285561]
[1736220135805,59.5,217.07,216.98,8.97285561]
[1736220136005,42.52714439,217.02,216.99,20.0]
[1736220136206,0.80853751,217.06,217.01,8.97285561]
[1736220136409,51.5,217.09,217.04,8.97285561]
[1736220136603,0.80853567,217.08,217.04,8.97285561]
[1736220137830,0.80853567,217.08,217.03,8.97285561]
[1736220138935,0.80853567,217.08,217.04,8.97285561]
[1736220141733,34.52714439,217.02,216.99,20.0]
[1736220141919,34.52714439,217.02,217.01,8.97285561]
[1736220147829,43.5,217.07,217.01,8.97285561]
[1736220148042,0.80855698,217.06,217.02,8.97285561]
[1736220153828,43.5,217.05,217.02,8.97285561]
[1736220154036,0.80858244,217.04,217.02,8.97285561]
[1736220154957,0.80858244,217.04,217.0,8.97285561]
[1736220156451,0.80858244,217.04,217.02,8.97285561]
[1736220159966,43.5,217.07,217.02,8.97285561]
[1736220160164,0.80860518,217.06,217.02,8.97285561]
[1736220161668,43.5,217.05,217.01,8.97285561]
[1736220161854,0.8086496,217.04,217.01,8.97285561]
[1736220165767,43.5,217.03,217.01,8.97285561]
[1736220165969,0.80863311,217.02,217.01,8.97285561]
[1736220166164,43.5,217.01,216.96,1.651]
[1736220166366,43.5,216.99,216.97,8.97285561]
[1736220166555,0.80881627,216.98,216.97,8.97285561]
[1736220168048,0.80881627,216.98,216.94,1.96]
[1736220168242,0.80881627,216.98,216.97,8.97285561]
[1736220170489,43.5,216.99,216.97,8.97285561]
[1736220170653,43.5,216.99,216.98,8.97285561]
[1736220171752,13.97285561,217.05,216.98,8.97285561]
[1736220172878,0.86424118,217.04,216.98,8.97285561]
[1736220174356,0.86424118,217.04,216.97,8.97285561]
[1736220177777,43.5,217.03,216.97,8.97285561]
[1736220177954,0.86427555,217.02,216.97,8.97285561]
[1736220179386,0.86427555,217.02,216.96,8.97285561]
[1736220180485,0.86427555,217.02,216.95,8.97285561]
[1736220180486,43.5,217.01,216.95,8.97285561]
[1736220180669,0.86428057,217.0,216.95,8.97285561]
[1736220181385,0.86428057,217.0,216.96,8.97285561]
[1736220182987,0.86428057,217.0,216.97,8.97285561]
[1736220183480,0.86428057,217.0,216.94,20.0]
[1736220183682,43.5,216.99,216.96,8.97285561]
[1736220183987,0.86426972,216.98,216.97,8.97285561]
[1736220189188,43.5,216.99,216.97,8.97285561]
[1736220189490,0.86418476,216.98,216.97,8.97285561]
[1736220190000,0.8642351,217.04,216.97,8.97285561]
[1736220194975,43.5,217.03,216.9,3.5952]
[1736220195170,43.5,217.01,216.95,8.97285561]
[1736220195374,0.86433572,217.0,216.95,8.97285561]
[1736220196503,0.86433572,217.0,216.96,8.97285561]
[1736220196683,0.86433572,217.0,216.97,8.97285561]
[1736220198310,0.86433572,217.0,216.95,8.97285561]
[1736220198802,43.5,216.98,216.94,8.97285561]
[1736220198973,0.86439743,216.97,216.94,8.97285561]
[1736220199402,0.86439743,216.97,216.9,1.6352]
[1736220199403,43.5,216.96,216.9,1.6352]
[1736220199582,0.86447241,216.95,216.92,8.97285561]
[1736220203103,0.86447241,216.95,216.93,8.97285561]
[1736220204596,34.52714439,216.91,216.89,6.0642]
[1736220205609,34.52714439,216.91,216.9,8.97285561]
[1736220210609,35.5,216.98,216.9,8.97285561]
[1736220210806,35.5,216.98,216.89,73.0642]
[1736220210807,26.52714439,216.93,216.89,73.0642]
[1736220210986,26.52714439,216.93,216.92,8.97285561]
[1736220216590,0.86437837,216.97,216.92,8.97285561]
[1736220216889,27.5,216.96,216.94,8.97285561]
[1736220217111,0.86438825,216.95,216.94,8.97285561]
[1736220217914,27.5,216.94,216.89,67.0]
[1736220218088,27.5,216.94,216.92,8.97285561]
[1736220218295,0.86440305,216.93,216.91,8.97285561]
[1736220220117,0.86440305,216.93,216.92,8.97285561]
[1736220220492,0.86440305,216.93,216.86,23.776884]
[1736220220702,0.86440305,216.93,216.91,8.97285561]
[1736220221315,0.86440305,216.93,216.87,67.0]
[1736220221512,0.86440305,216.93,216.92,8.97285561]
[1736220222815,0.86449457,216.98,216.92,8.97285561]
[1736220223515,0.86449457,216.98,216.86,23.776884]
[1736220223815,0.86449457,216.98,216.92,8.97285561]
[1736220225717,27.5,216.97,216.92,8.97285561]
[1736220225918,0.86449702,216.96,216.92,8.97285561]
[1736220230818,0.86449702,216.96,216.94,8.97285561]
[1736220231046,10.52714439,216.92,216.86,90.776884]
[1736220231328,10.52714439,216.91,216.86,90.776884]
[1736220234445,10.52714439,216.91,216.9,8.97285561]
[1736220234815,0.86443881,216.96,216.9,8.97285561]
[1736220235014,19.5,216.97,216.93,8.97285561]
[1736220235217,0.86445031,216.96,216.93,8.97285561]
[1736220236208,0.86445031,216.96,216.95,8.97285561]
[1736220236536,0.86433992,216.98,216.95,8.97285561]
[1736220239545,19.5,216.96,216.9,23.776884]
[1736220240539,0.86433992,216.98,216.95,8.97285561]
[1736220243956,19.5,216.97,216.95,8.97285561]
[1736220244445,0.86433992,216.98,216.96,8.97285561]
[1736220244746,0.86433992,216.98,216.97,8.97285561]
[1736220245737,23.26377148,216.99,216.97,8.97285561]
[1736220246139,23.26377148,216.99,216.98,8.97285561]
[1736220257850,23.26377148,216.99,216.92,39.64539006]
[1736220258163,23.26377148,216.99,216.98,8.97285561]
[1736220283796,19.5,217.05,216.98,8.97285561]
[1736220284089,0.86405734,217.04,217.01,8.97285561]
[1736220287383,0.86405734,217.04,217.02,8.97285561]
[1736220288712,19.5,217.03,217.02,8.97285561]
[1736220294717,0.86404551,217.08,217.02,8.97285561]
[1736220296687,0.86404551,217.08,217.02,75.97285561]
[1736220297910,0.86404551,217.08,217.02,8.97285561]
[1736220298824,19.5,217.05,217.0,20.0]
[1736220299325,19.5,217.05,217.01,20.0]
[1736220300280,0.863932,217.04,216.97,1.5081]
[1736220300533,19.5,217.02,216.97,1.5081]
[1736220300696,19.5,217.02,217.01,8.97285561]
[1736220300881,19.5,217.02,217.01,75.97285561]
[1736220303610,19.5,217.07,217.01,75.97285561]
[1736220303809,0.86404236,217.06,217.01,8.97285561]
[1736220304314,19.5,217.04,216.91,1.96]
[1736220304519,0.86434159,217.03,216.96,8.97285561]
[1736220305910,0.86434159,217.03,216.97,8.97285561]
[1736220306719,0.86434159,217.03,216.97,75.97285561]
[1736220306913,0.86434159,217.03,216.99,8.97285561]
[1736220307117,19.5,217.02,217.0,8.97285561]
[1736220307327,19.5,217.0,216.99,8.97285561]
[1736220309727,19.5,216.99,216.98,8.97285561]
[1736220310220,19.5,216.99,216.98,75.97285561]
[1736220313234,19.5,216.99,216.98,8.97285561]
[1736220315611,19.5,217.04,216.98,8.97285561]
[1736220315813,0.86422513,217.03,216.98,8.97285561]
[1736220316233,0.86422513,217.03,216.98,75.97285561]
[1736220316428,19.5,217.02,216.98,75.97285561]
[1736220316636,19.5,217.0,216.97,8.97285561]
[1736220316803,0.86430275,216.99,216.97,8.97285561]
[1736220320002,19.5,216.98,216.9,1.96]
[1736220320224,0.86438636,216.97,216.96,8.97285561]
[1736220320408,0.86437156,217.01,216.96,8.97285561]
[1736220322937,19.5,217.0,216.97,8.97285561]
[1736220323121,0.86432572,216.99,216.97,8.97285561]
[1736220326339,19.5,216.98,216.96,8.97285561]
[1736220326512,0.86435864,216.97,216.96,8.97285561]
[1736220328037,19.5,216.96,216.9,20.0]
[1736220328239,0.8644053,216.95,216.9,20.0]
[1736220329513,0.8644053,216.95,216.94,8.97285561]
[1736220329811,0.86436409,216.98,216.94,8.97285561]
[1736220330113,0.86436409,216.98,216.97,8.97285561]
[1736220335445,23.46571598,216.99,216.97,8.97285561]
[1736220335737,23.46571598,216.99,216.98,8.97285561]
[1736220352544,23.46571598,216.99,216.93,11.5243]
[1736220352744,23.46571598,216.99,216.98,8.97285561]
[1736220364571,23.46571598,216.99,216.92,67.0]
[1736220364757,0.86426196,216.98,216.92,67.0]
[1736220364962,0.86426196,216.98,216.86,20.37064862]
[1736220364963,0.86426196,216.98,216.96,8.97285561]
[1736220366368,0.86426196,216.98,216.89,20.0]
[1736220366685,0.86426196,216.98,216.96,8.97285561]
[1736220369672,19.5,216.97,216.96,8.97285561]
[1736220374373,0.86426196,216.98,216.95,8.97285561]
[1736220375161,19.5,216.96,216.89,20.0]
[1736220375379,0.86450115,216.95,216.93,8.97285561]
[1736220375581,19.5,216.94,216.92,8.97285561]
[1736220375895,0.86449878,216.93,216.92,8.97285561]
[1736220381653,0.86448955,216.98,216.92,8.97285561]
[1736220382881,0.86448955,216.98,216.89,20.0]
[1736220383073,0.86448955,216.98,216.93,8.97285561]
[1736220383382,0.86448955,216.98,216.89,20.0]
[1736220383583,0.86448955,216.98,216.93,8.97285561]
[1736220385161,9.83734516,216.98,216.86,1.6361]
[1736220385361,9.83734516,216.98,216.91,8.97285561]
[1736220387555,19.5,216.97,216.91,8.97285561]
[1736220387761,0.86454951,216.96,216.91,8.97285561]
[1736220389403,0.86454951,216.96,216.86,1.6361]
[1736220389698,0.86454951,216.96,216.92,8.97285561]
[1736220392997,0.86454951,216.96,216.93,8.97285561]
[1736220393178,2.52714439,216.94,216.86,1.6361]
[1736220393380,11.5,216.98,216.93,8.97285561]
[1736220393567,11.5,216.97,216.94,8.97285561]
[1736220394089,11.5,216.93,216.81,13.14]
[1736220394406,11.5,216.92,216.86,8.97285561]
[1736220394570,11.5,216.91,216.85,8.97285561]
[1736220395491,0.86465476,216.9,216.85,8.97285561]
[1736220397201,11.5,216.89,216.86,8.97285561]
[1736220397495,0.86465035,216.88,216.86,8.97285561]
[1736220399212,0.86465035,216.88,216.87,8.97285561]
[1736220399410,11.5,216.93,216.87,8.97285561]
[1736220399610,11.5,216.91,216.88,8.97285561]
[1736220399810,0.8646216,216.9,216.88,8.97285561]
[1736220400597,0.8646216,216.9,216.89,8.97285561]
[1736220400917,0.86461778,216.94,216.89,8.97285561]
[1736220405323,0.86461778,216.94,216.9,8.97285561]
[1736220405494,11.5,216.93,216.9,8.97285561]
[1736220405694,0.86457279,216.92,216.9,8.97285561]
[1736220406728,11.5,216.91,216.89,8.97285561]
[1736220406929,0.86458323,216.9,216.89,8.97285561]
[1736220408992,11.5,216.91,216.89,8.97285561]
[1736220409190,0.86454316,216.95,216.9,8.97285561]
[1736220409427,11.5,216.94,216.91,8.97285561]
[1736220409596,0.86451615,216.93,216.91,8.97285561]
[1736220410431,0.86449966,216.94,216.92,8.97285561]
[1736220410622,11.5,216.96,216.93,8.97285561]
[1736220410922,0.86443133,216.95,216.94,8.97285561]
[1736220411132,25.42571598,216.99,216.94,8.97285561]
[1736220411133,0.86443025,216.98,216.94,8.97285561]
[1736220414430,11.5,216.97,216.94,8.97285561]
[1736220414630,0.86442799,216.96,216.94,8.97285561]
[1736220414827,0.86442799,216.96,216.93,8.97285561]
[1736220415016,11.5,216.95,216.93,8.97285561]
[1736220415213,0.86443066,216.94,216.93,8.97285561]
[1736220419806,0.86440782,216.98,216.93,8.97285561]
[1736220420001,11.5,216.96,216.95,8.97285561]
[1736220420926,0.86440782,216.98,216.95,8.97285561]
[1736220421131,0.86440782,216.98,216.87,8.0897]
[1736220421132,0.86440782,216.98,216.97,8.97285561]
[1736220423542,0.86440782,216.98,216.96,8.97285561]
[1736220424344,0.86440782,216.98,216.95,8.97285561]
[1736220425145,11.5,216.97,216.95,8.97285561]
[1736220425348,0.8643344,216.96,216.95,8.97285561]
[1736220429546,11.5,216.97,216.87,8.0897]
[1736220429847,0.86434195,216.98,216.87,8.0897]
[1736220429848,11.5,216.94,216.91,8.97285561]
[1736220430055,0.8644787,216.93,216.91,8.97285561]
[1736220432050,0.8644787,216.93,216.92,8.97285561]
[1736220432253,0.86443748,216.97,216.92,8.97285561]
[1736220433546,11.5,216.96,216.93,8.97285561]
[1736220433850,11.5,216.94,216.87,8.0897]
[1736220434051,0.86446438,216.93,216.92,8.97285561]
[1736220434349,11.5,216.97,216.92,8.97285561]
[1736220434534,0.86445203,216.96,216.92,8.97285561]
[1736220434729,11.5,216.94,216.77,28.0653]
[1736220434936,11.5,216.92,216.88,8.97285561]
[1736220435136,0.86462516,216.91,216.88,8.97285561]
[1736220435856,11.5,216.9,216.89,8.97285561]
[1736220441339,0.86460008,216.93,216.89,8.97285561]
[1736220441970,0.86460179,216.92,216.89,8.97285561]
[1736220442958,0.86460179,216.92,216.82,20.0]
[1736220443262,11.5,216.9,216.88,8.97285561]
[1736220443563,0.86460905,216.89,216.88,8.97285561]
[1736220443860,0.86460905,216.89,216.87,8.97285561]
[1736220444044,11.5,216.92,216.87,8.97285561]
[1736220444244,0.86462349,216.91,216.87,8.97285561]
[1736220445056,0.86462349,216.91,216.88,8.97285561]
[1736220446769,11.5,216.89,216.84,20.0]
[1736220449558,11.5,216.89,216.88,8.97285561]
[1736220450356,11.5,216.94,216.88,8.97285561]
[1736220450535,0.86448491,216.93,216.88,8.97285561]
[1736220451939,0.86448491,216.93,216.91,8.97285561]
[1736220453040,0.86448491,216.93,216.84,20.0]
[1736220453258,0.86448491,216.93,216.91,8.97285561]
[1736220455161,0.86448491,216.93,216.9,8.97285561]
[1736220455360,0.86448491,216.93,216.84,20.0]
[1736220455560,9.83734052,216.93,216.87,8.97285561]
[1736220455944,0.86448491,216.93,216.87,8.97285561]
[1736220456357,11.5,216.92,216.88,8.97285561]
[1736220456563,0.86461693,216.91,216.88,8.97285561]
[1736220459372,11.5,216.9,216.88,8.97285561]
[1736220461252,0.86460449,216.89,216.88,8.97285561]
[1736220463978,11.5,216.9,216.88,8.97285561]
[1736220464164,35.276884,216.94,216.89,8.97285561]
[1736220464363,0.86457899,216.93,216.89,8.97285561]
[1736220465252,11.5,216.92,216.9,8.97285561]
[1736220465452,0.86458642,216.91,216.9,8.97285561]
[1736220471456,0.86457579,216.93,216.9,8.97285561]
[1736220471655,11.5,216.91,216.83,8.0756]
[1736220474480,0.86457579,216.93,216.9,8.97285561]
[1736220474682,0.86457579,216.93,216.92,8.97285561]
[1736220477384,22.49747977,216.94,216.92,8.97285561]
[1736220477586,21.63302094,216.94,216.93,8.97285561]
[1736220478972,11.5,216.93,216.86,20.0]
[1736220479172,0.86447684,216.93,216.92,8.97285561]
[1736220480864,11.5,216.92,216.86,20.0]
[1736220481064,0.86447684,216.93,216.91,8.97285561]
[1736220481275,0.86447684,216.93,216.92,8.97285561]
[1736220488598,21.63302094,216.94,216.92,8.97285561]
[1736220488782,21.63302094,216.94,216.93,8.97285561]
[1736220503927,21.63302094,216.94,216.86,20.0]
[1736220504095,11.5,216.93,216.86,20.0]
[1736220504296,21.63302094,216.94,216.92,8.97285561]
[1736220507223,11.5,216.93,216.92,8.97285561]
[1736220512837,11.5,216.92,216.86,20.0]
[1736220513006,21.63302094,216.94,216.91,8.97285561]
[1736220513207,21.63302094,216.94,216.93,8.97285561]
[1736220516618,21.63302094,216.94,216.91,8.97285561]
[1736220517130,11.5,216.93,216.91,8.97285561]
[1736220518433,21.63302094,216.94,216.92,8.97285561]
[1736220520230,21.63302094,216.94,216.93,8.97285561]
[1736220521935,21.63302094,216.94,216.86,20.0]
[1736220522108,21.63302094,216.94,216.93,8.97285561]
[1736220528115,0.83146396,217.02,216.93,8.97285561]
[1736220528430,0.83146396,217.02,217.0,8.97285561]
[1736220529533,0.83143444,217.03,217.0,8.97285561]
[1736220530736,11.5,217.02,216.92,35.89142244]
[1736220530913,11.5,217.01,216.92,35.89142244]
[1736220533119,11.5,217.01,216.92,102.89142244]
[1736220534314,11.5,217.0,216.92,102.89142244]
[1736220534515,11.5,217.05,216.99,8.97285561]
[1736220534849,11.5,217.03,217.02,8.97285561]
[1736220535370,0.83124985,217.08,217.02,8.97285561]
[1736220535520,0.83124985,217.08,216.97,1.96]
[1736220535521,11.5,217.06,216.97,1.96]
[1736220535723,0.83124985,217.08,217.05,8.97285561]
[1736220535918,11.5,217.06,216.97,1.96]
[1736220536126,11.5,217.06,216.99,20.0]
[1736220538247,11.5,217.06,216.99,87.0]
[1736220539552,0.83124985,217.08,217.05,8.97285561]
[1736220539865,0.83124985,217.08,217.07,8.97285561]
[1736220540558,0.83118716,217.09,217.07,8.97285561]
[1736220541960,0.83118716,217.09,217.08,8.97285561]
[1736220551957,0.8311038,217.12,217.08,8.97285561]
[1736220552148,0.8311038,217.12,217.09,8.97285561]
[1736220552336,0.83099362,217.17,217.09,8.97285561]
[1736220555738,0.83099362,217.17,217.13,8.97285561]
[1736220556058,11.5,217.16,217.13,8.97285561]
[1736220556258,0.83095147,217.15,217.13,8.97285561]
[1736220557560,0.83095147,217.15,217.14,8.97285561]
[1736220557762,0.83092241,217.17,217.14,8.97285561]
[1736220558432,11.5,217.16,217.13,8.97285561]
[1736220558635,0.83094483,217.15,217.13,8.97285561]
[1736220559955,11.5,217.13,217.04,68.96]
[1736220560164,0.83088234,217.17,217.12,8.97285561]
[1736220560367,11.5,217.16,217.14,8.97285561]
[1736220560582,0.83086851,217.15,217.14,8.97285561]
[1736220562243,12.3308683,217.16,217.14,8.97285561]
[1736220562567,11.5,217.2,217.15,8.97285561]
[1736220562779,16.5095,217.22,217.16,8.97285561]
[1736220562780,11.5,217.18,217.16,8.97285561]
[1736220562945,0.83079099,217.17,217.16,8.97285561]
[1736220565291,11.5,217.18,217.16,8.97285561]
[1736220565472,23.776884,217.2,217.17,8.97285561]
[1736220566186,11.5,217.2,217.19,8.97285561]
[1736220567352,11.5,217.25,217.19,8.97285561]
[1736220567690,12.36331403,217.24,217.21,8.97285561]
[1736220568879,11.5,217.23,217.22,8.97285561]
[1736220571182,0.86326022,217.25,217.22,8.97285561]
[1736220571486,11.5,217.24,217.23,8.97285561]
[1736220576085,0.86326022,217.25,217.23,8.97285561]
[1736220581696,11.5,217.24,217.14,35.89142244]
[1736220581905,0.86323044,217.23,217.14,35.89142244]
[1736220582074,0.86323044,217.23,217.22,8.97285561]
[1736220582274,0.8632362,217.25,217.22,8.97285561]
[1736220582475,11.5,217.24,217.23,8.97285561]
[1736220584105,11.5,217.23,217.14,35.89142244]
[1736220584307,0.8632362,217.25,217.22,8.97285561]
[1736220584598,11.5,217.24,217.23,8.97285561]
[1736220588109,0.8632362,217.25,217.23,8.97285561]
[1736220588720,11.5,217.24,217.15,6.3381]
[1736220588895,0.8632362,217.25,217.23,8.97285561]
[1736220591826,11.5,217.24,217.22,8.97285561]
[1736220593126,0.8632362,217.25,217.23,8.97285561]
[1736220595591,11.5,217.24,217.22,8.97285561]
[1736220596615,23.776884,217.22,217.18,8.97285561]
[1736220596793,0.86344552,217.21,217.17,8.97285561]
[1736220598213,0.86344552,217.21,217.18,8.97285561]
[1736220600088,11.5,217.2,217.18,8.97285561]
[1736220600289,11.5,217.2,217.19,8.97285561]
[1736220603015,11.5,217.23,217.19,8.97285561]
[1736220603312,0.86329612,217.25,217.22,8.97285561]
[1736220603618,11.5,217.24,217.23,8.97285561]
[1736220604317,11.5,217.21,217.2,8.97285561]
[1736220604518,11.5,217.19,217.13,1.5578]
[1736220604735,0.86346598,217.18,217.17,8.97285561]
[1736220605250,23.776884,217.22,217.17,8.97285561]
[1736220605431,0.86345272,217.21,217.17,8.97285561]
[1736220606499,23.776884,217.2,217.16,8.97285561]
[1736220606701,0.86353644,217.19,217.1,6.4505]
[1736220607000,23.776884,217.2,217.15,8.97285561]
[1736220607202,0.86354854,217.19,217.15,8.97285561]
[1736220607401,11.5,217.17,217.08,1.6354]
[1736220607603,0.86359025,217.16,217.05,8.016]
[1736220607819,23.776884,217.15,217.05,6.056]
[1736220608001,0.86375208,217.14,217.1,8.97285561]
[1736220608202,11.5,217.12,217.1,8.97285561]
[1736220608402,0.86372113,217.11,217.1,8.97285561]
[1736220609021,11.5,217.12,217.1,8.97285561]
[1736220609223,35.276884,217.16,217.11,8.97285561]
[1736220609432,11.5,217.15,217.1,8.97285561]
[1736220611328,0.86375472,217.14,217.1,8.97285561]
[1736220611909,11.5,217.13,217.09,8.97285561]
[1736220612109,0.86378518,217.12,217.09,8.97285561]
[1736220612634,0.86378518,217.12,217.08,8.97285561]
[1736220612939,11.5,217.11,217.03,1.6354]
[1736220613142,11.5,217.09,216.99,6.3399]
[1736220613448,11.5,217.07,217.02,8.97285561]
[1736220613628,0.86402983,217.06,217.02,8.97285561]
[1736220614446,0.86402983,217.06,217.03,8.97285561]
[1736220614755,0.86402983,217.06,217.04,8.97285561]
[1736220615514,0.86402983,217.06,217.05,8.97285561]
[1736220615714,24.64083022,217.08,217.05,8.97285561]
[1736220621046,11.5,217.07,217.05,8.97285561]
[1736220621343,0.86394069,217.06,217.05,8.97285561]
[1736220621925,11.5,217.07,217.05,8.97285561]
[1736220622537,35.276884,217.11,217.06,8.97285561]
[1736220622736,11.5,217.08,217.07,8.97285561]
[1736220623838,11.5,217.07,217.06,8.97285561]
[1736220624849,0.86384516,217.11,217.06,8.97285561]
[1736220625017,11.5,217.13,217.1,8.97285561]
[1736220625217,0.86369306,217.12,217.1,8.97285561]
[1736220626218,0.86369306,217.12,217.11,8.97285561]
[1736220626414,23.776884,217.15,217.11,8.97285561]
[1736220626624,0.86368456,217.14,217.11,8.97285561]
[1736220627341,0.86368456,217.14,217.12,8.97285561]
[1736220629243,0.86362923,217.15,217.12,8.97285561]
[1736220630141,11.5,217.14,217.12,8.97285561]
[1736220630524,0.86362923,217.15,217.13,8.97285561]
[1736220631345,11.5,217.13,217.06,1.64]
[1736220631842,11.5,217.16,217.08,20.0]
[1736220632921,11.5,217.19,217.08,20.0]
[1736220633129,0.86344599,217.18,217.17,8.97285561]
[1736220634448,11.5,217.17,217.16,8.97285561]
[1736220634957,11.5,217.16,217.15,8.97285561]
[1736220635160,11.5,217.15,217.14,8.97285561]
[1736220639063,0.86344599,217.18,217.14,8.97285561]
[1736220639541,11.5,217.17,217.15,8.97285561]
[1736220640329,0.8634964,217.16,217.15,8.97285561]
[1736220640530,11.5,217.17,217.15,8.97285561]
[1736220641057,0.86352712,217.18,217.14,8.97285561]
[1736220641058,11.5,217.16,217.14,8.97285561]
[1736220641354,0.86352712,217.18,217.15,8.97285561]
[1736220641537,11.5,217.18,217.16,8.97285561]
[1736220642131,11.5,217.17,217.15,8.97285561]
[1736220645156,0.8634525,217.19,217.16,8.97285561]
[1736220645346,11.5,217.18,217.17,8.97285561]
[1736220646152,11.5,217.17,217.09,6.0828]
[1736220646338,11.5,217.16,217.14,8.97285561]
[1736220647738,0.8634525,217.19,217.15,8.97285561]
[1736220648044,11.5,217.18,217.16,8.97285561]
[1736220649656,11.44453968,217.17,217.09,6.0828]
[1736220649863,0.8634525,217.19,217.16,8.97285561]
[1736220652562,11.5,217.18,217.17,8.97285561]
[1736220652748,11.5,217.19,217.17,8.97285561]
[1736220653661,11.5,217.18,217.16,8.97285561]
[1736220655163,11.5,217.19,217.17,8.97285561]
[1736220660066,11.5,217.19,217.16,8.97285561]
[1736220660270,0.86338773,217.18,217.12,1.5426]
[1736220660487,0.86338773,217.18,217.12,8.97285561]
[1736220661367,23.776884,217.17,217.09,6.0828]
[1736220661668,20.47285561,217.14,217.07,1.5658]
[1736220661860,0.86374883,217.13,217.08,8.97285561]
[1736220662254,11.5,217.12,217.08,8.97285561]
[1736220662455,11.5,217.1,217.08,8.97285561]
[1736220663963,0.86373481,217.14,217.09,8.97285561]
[1736220667680,0.86373481,217.14,217.03,42.09492244]
[1736220667681,11.5,217.14,217.13,8.97285561]
[1736220667868,11.5,217.14,217.12,8.97285561]
[1736220668048,0.86364884,217.13,217.12,8.97285561]
[1736220668249,11.5,217.14,217.12,8.97285561]
[1736220668474,11.5,217.13,217.11,8.97285561]
[1736220670484,11.5,217.12,217.1,8.97285561]
[1736220670978,11.5,217.11,217.09,8.97285561]
[1736220671858,11.5,217.1,217.08,8.97285561]
[1736220673284,11.5,217.13,217.09,8.97285561]
[1736220673465,0.86371538,217.12,217.09,8.97285561]
[1736220673655,11.5,217.11,217.1,8.97285561]
[1736220677271,11.5,217.1,217.03,6.2035]
[1736220677471,11.5,217.09,217.08,8.97285561]
[1736220680879,11.5,217.14,217.08,8.97285561]
[1736220681072,11.5,217.14,217.03,42.09492244]
[1736220681073,11.5,217.12,217.09,8.97285561]
[1736220681492,11.5,217.11,217.03,6.2035]
[1736220681670,11.5,217.1,217.09,8.97285561]
[1736220686883,0.86371898,217.13,217.09,8.97285561]
[1736220687198,23.776884,217.14,217.09,8.97285561]
[1736220687382,0.86371799,217.13,217.09,8.97285561]
[1736220689099,11.5,217.12,217.1,8.97285561]
[1736220690787,11.5,217.12,217.09,8.97285561]
[1736220691100,0.86372509,217.11,217.09,8.97285561]
[1736220692382,11.5,217.12,217.09,8.97285561]
[1736220692581,0.86371944,217.11,217.09,8.97285561]
[1736220692974,11.5,217.1,217.09,8.97285561]